fUSD/lending_fUSD_20260421
["ID","MTS","AMOUNT","RATE_DAILY","PERIOD"]
[420886047,1776701003979,-796.53588917,0.0003562,30]
[420886048,1776701004009,-796.53588917,0.0003562,30]
[420886049,1776701004038,-796.53588917,0.0003562,30]
[420886050,1776701004068,-796.53588917,0.0003562,30]
[420886051,1776701004097,-796.53588917,0.0003562,30]
[420886052,1776701004126,-796.53,0.0003562,30]
[420886053,1776701004155,-1858.5837414,0.0003562,30]
[420886054,1776701004183,-1858.5837414,0.0003562,30]
[420886055,1776701004214,-1858.5837414,0.0003562,30]
[420886056,1776701004244,-1858.5837414,0.0003562,30]
[420886057,1776701004273,-1858.5837414,0.0003562,30]
[420886058,1776701004301,-1858.5837414,0.0003562,30]
[420886059,1776701004330,-1858.5837414,0.0003562,30]
[420886060,1776701004359,-1858.5837414,0.0003562,30]
[420886061,1776701004389,-1858.5837414,0.0003562,30]
[420886062,1776701004419,-1858.5837414,0.0003562,30]
[420886063,1776701004449,-1858.5837414,0.0003562,30]
[420886064,1776701004477,-1858.5837414,0.0003562,30]
[420886065,1776701004507,-1858.5837414,0.0003562,30]
[420886066,1776701004537,-1858.5837414,0.0003562,30]
[420886067,1776701004567,-1858.5837414,0.0003562,30]
[420886068,1776701004597,-1858.5837414,0.0003562,30]
[420886069,1776701004629,-1858.5837414,0.0003562,30]
[420886070,1776701004658,-1858.5837414,0.0003562,30]
[420886071,1776701004687,-1858.5837414,0.0003562,30]
[420886072,1776701004716,-1858.58,0.0003562,30]
[420886073,1776701004744,-500.0,0.00035629,120]
[420886074,1776701004774,-1314.93,0.00035663,120]
[420886075,1776701004802,-1000.0,0.000358,120]
[420886076,1776701004831,-1314.93,0.00035816,120]
[420886077,1776701004859,-285.92934206,0.000359,120]
[420886078,1776701004888,-1141.74378509,0.000359,120]
[420886079,1776701004917,-806.62480018,0.000359,120]
[420886080,1776701004946,-946.19270299,0.000359,120]
[420886081,1776701004974,-1090.40705208,0.000359,120]
[420886082,1776701005003,-974.91317845,0.000359,120]
[420886083,1776701005031,-775.27709729,0.000359,120]
[420886084,1776701005061,-2193.73133099,0.000359,120]
[420886085,1776701005090,-2330.16090998,0.000359,120]
[420886086,1776701005119,-1967.92759793,0.000359,120]
[420886087,1776701005147,-1520.82952207,0.000359,120]
[420886088,1776701005175,-263.55700404,0.000359,120]
[420886089,1776701005204,-183.35354688,0.000359,120]
[420886090,1776701005232,-1091.62268428,0.000359,120]
[420886091,1776701005261,-1647.87086454,0.000359,120]
[420886092,1776701005289,-1184.84916998,0.000359,120]
[420886093,1776701005318,-1314.93,0.00035969,120]
[420886094,1776701005346,-1737.0,0.00035984,30]
[420886095,1776701005374,-499.0,0.00035984,30]
[420886096,1776701005402,-513.0,0.00035984,30]
[420886097,1776701005431,-1579.0,0.00035986,30]
[420886098,1776701005460,-2554.0,0.00035986,30]
[420886099,1776701005489,-341.0,0.00035986,30]
[420886100,1776701005520,-595.0,0.00035987,30]
[420886101,1776701005548,-226.0,0.00035987,30]
[420886102,1776701005576,-807.0,0.00035987,30]
[420886103,1776701005605,-809.0,0.00036,30]
[420886104,1776701005632,-600.0,0.00036,120]
[420886105,1776701005660,-429.80025017,0.00036,120]
[420886106,1776701005687,-10000.0,0.00036,120]
[420886107,1776701005715,-1500.0,0.00036,120]
[420886108,1776701005742,-2073.0,0.00036,120]
[420886109,1776701005770,-2502137.568,0.00036,60]
[420886110,1776701005799,-500.0,0.00036082,120]
[420886111,1776701005831,-28357.91807966,0.00036112,83]
[420886112,1776701005859,-1314.93,0.00036122,120]
[420886113,1776701005887,-1314.93,0.00036276,120]
[420886114,1776701005919,-2827.14272908,0.0003628,84]
[420886115,1776701005949,-160.46,0.00036301,30]
[420886116,1776701005978,-1661.32,0.0003631,120]
[420886117,1776701006008,-500.0,0.00036396,120]
[420886118,1776701006038,-1314.93,0.00036429,120]
[420886119,1776701006066,-1000.0,0.000365,30]
[420886120,1776701006096,-1314.93,0.00036582,120]
[420886121,1776701006125,-556.75,0.000366,60]
[420886122,1776701006154,-375.19,0.00036648,90]
[420886123,1776701006183,-1314.93,0.00036735,120]
[420886124,1776701006211,-1509.189,0.000368,120]
[420886125,1776701006238,-1509.189,0.000368,120]
[420886126,1776701006266,-1509.19,0.000368,120]
[420886127,1776701006294,-2386.6811,0.000368,120]
[420886128,1776701006322,-1000.0,0.000368,120]
[420886129,1776701006350,-3422.0,0.000368,120]
[420886130,1776701006379,-1314.93,0.00036888,120]
[420886131,1776701006406,-208.0,0.0003689,30]
[420886132,1776701006434,-1816.45957666,0.000369,120]
[420886133,1776701006461,-250.0,0.00036913,42]
[420886134,1776701006490,-1737.0,0.00036984,30]
[420886135,1776701006518,-499.0,0.00036984,30]
[420886136,1776701006547,-513.0,0.00036984,30]
[420886137,1776701006576,-1579.0,0.00036986,30]
[420886138,1776701006605,-2554.0,0.00036986,30]
[420886139,1776701007022,-341.0,0.00036986,30]
[420886140,1776701007052,-452.95720148,0.00036986,90]
[420886141,1776701007083,-600.0,0.00036986,120]
[420886142,1776701007113,-600.0,0.00036986,90]
[420886143,1776701007143,-600.0,0.00036986,60]
[420886144,1776701007176,-595.0,0.00036987,30]
[420886145,1776701007205,-226.0,0.00036987,30]
[420886146,1776701007235,-807.0,0.00036987,30]
[420886147,1776701007263,-1000.0,0.00037,30]
[420886148,1776701007291,-26594.0,0.00037,30]
[420886149,1776701007320,-1500.0,0.00037,120]
[420886150,1776701007348,-1141.74378509,0.00037,120]
[420886151,1776701007377,-806.62480018,0.00037,120]
[420886152,1776701007406,-946.19270299,0.00037,120]
[420886153,1776701007435,-1090.40705208,0.00037,120]
[420886154,1776701007462,-974.91317845,0.00037,120]
[420886155,1776701007491,-775.27709729,0.00037,120]
[420886156,1776701007520,-2193.73133099,0.00037,120]
[420886157,1776701007550,-2330.16090998,0.00037,120]
[420886158,1776701007579,-1967.92759793,0.00037,120]
[420886159,1776701007608,-1520.82952207,0.00037,120]
[420886160,1776701007637,-263.55700404,0.00037,120]
[420886161,1776701007667,-1091.62268428,0.00037,120]
[420886162,1776701007696,-1647.87086454,0.00037,120]
[420886163,1776701007726,-1184.84916998,0.00037,120]
[420886164,1776701007756,-11336.86834672,0.00037,30]
[420886165,1776701007786,-1314.93,0.00037041,120]
[420886166,1776701007814,-999.06,0.00037052,30]
[420886167,1776701007843,-1509.189,0.000371,60]
[420886168,1776701007871,-1509.19,0.000371,120]
[420886169,1776701007899,-260.0,0.00037109,43]
[420886170,1776701007929,-500.0,0.00037164,120]
[420886171,1776701007959,-1314.93,0.00037194,120]
[420886172,1776701007988,-1661.32,0.0003721,45]
[420886173,1776701008016,-500.0,0.00037237,120]
[420886174,1776701008045,-1314.93,0.00037347,120]
[420886175,1776701008076,-33980.32477583,0.00037355,87]
[420886176,1776701008104,-2000.0,0.000374,120]
[420886177,1776701008131,-2013.0,0.000374,120]
[420886178,1776701008159,-356.7,0.00037434,90]
[420886179,1776701008188,-1000.0,0.000375,30]
[420886180,1776701008217,-500.0,0.000375,120]
[420886181,1776701008245,-2726.389,0.000376,120]
[420886182,1776701008273,-2726.38,0.000376,120]
[420886183,1776701008302,-2000.0,0.000377,120]
[420886184,1776701008330,-1561.0,0.000378,120]
[420886185,1776701008358,-182.48115212,0.000379,120]
[420886186,1776701008387,-246.34501967,0.000379,120]
[420886187,1776701008416,-3568.73633245,0.000379,120]
[420886188,1776701008449,-3605.2317128,0.00037923,88]
[420886189,1776701008478,-1737.0,0.00037984,30]
[420886190,1776701008507,-499.0,0.00037984,30]
[420886191,1776701008536,-513.0,0.00037984,30]
[420886192,1776701008565,-1579.0,0.00037986,30]
[420886193,1776701008594,-2554.0,0.00037986,30]
[420886194,1776701008622,-341.0,0.00037986,30]
[420886196,1776701008651,-500.0,0.00037986,120]
[420886197,1776701008680,-595.0,0.00037987,30]
[420886198,1776701008710,-226.0,0.00037987,30]
[420886199,1776701008740,-807.0,0.00037987,30]
[420886200,1776701008769,-2010.0,0.00038,30]
[420886201,1776701008796,-1000.0,0.00038,30]
[420886202,1776701008827,-600.0,0.00038,120]
[420886203,1776701008856,-3165.63270119,0.00038,30]
[420886204,1776701008885,-309.59,0.00038,120]
[420886205,1776701008915,-1500.0,0.00038,120]
[420886206,1776701008942,-2000.0,0.00038,120]
[420886207,1776701008971,-2000.0,0.00038,120]
[420886208,1776701009000,-2000.0,0.00038,120]
[420886209,1776701009028,-3000000.0,0.00038,60]
[420886210,1776701009059,-24391.47116517,0.00038,30]
[420886211,1776701009088,-404.82,0.00038014,120]
[420886212,1776701009116,-2000.0,0.00038099,120]
[420886213,1776701009144,-298.91009213,0.000381,33]
[420886214,1776701009172,-303.200615,0.000381,33]
[420886215,1776701009201,-4789.29962698,0.000381,33]
[420886216,1776701009229,-280.11433601,0.000381,33]
[420886217,1776701009258,-2193.73133099,0.000381,120]
[420886218,1776701009285,-2330.16090998,0.000381,120]
[420886219,1776701009313,-1091.62268428,0.000381,120]
[420886220,1776701009340,-1647.87086454,0.000381,120]
[420886221,1776701009369,-1184.84916998,0.000381,120]
[420886222,1776701009396,-1661.32,0.0003812,87]
[420886223,1776701009424,-203.8583845,0.00038184,120]
[420886224,1776701009453,-1000.0,0.000382,30]
[420886225,1776701009482,-1069.34072667,0.000383,30]
[420886226,1776701009510,-237.05307181,0.00038355,120]
[420886227,1776701009540,-600.0,0.00038356,120]
[420886228,1776701009568,-600.0,0.00038356,90]
[420886229,1776701009596,-10000.0,0.00038356,120]
[420886230,1776701009624,-10000.0,0.00038356,120]
[420886231,1776701009652,-1000.0,0.00038356,30]
[420886232,1776701009680,-234.88433273,0.0003839,30]
[420886233,1776701009709,-198.72432547,0.0003839,30]
[420886234,1776701009740,-171.12740107,0.0003839,30]
[420886235,1776701009770,-215.95999738,0.0003839,30]
[420886236,1776701009799,-150.99476563,0.0003839,30]
[420886237,1776701009826,-169.86911132,0.0003839,30]
[420886238,1776701009854,-186.48874162,0.0003839,30]
[420886239,1776701009881,-150.99476562,0.0003839,30]
[420886240,1776701009909,-179.16416392,0.0003839,30]
[420886241,1776701009937,-259.92407576,0.0003839,30]
[420886242,1776701009965,-178.8823724,0.0003839,30]
[420886243,1776701010371,-154.4025686,0.0003839,30]
[420886244,1776701010401,-161.25883824,0.0003839,30]
[420886245,1776701010429,-197.24895777,0.0003839,30]
[420886246,1776701010459,-288.81893921,0.0003839,30]
[420886247,1776701010488,-213.26080701,0.0003839,30]
[420886248,1776701010516,-161.2159214,0.0003839,30]
[420886249,1776701010545,-271.42888733,0.0003839,30]
[420886250,1776701010574,-184.18230539,0.0003839,30]
[420886251,1776701010603,-197.298222,0.0003839,30]
[420886252,1776701010631,-500.0,0.00038391,120]
[420886253,1776701010659,-268.43923741,0.000384,120]
[420886254,1776701010688,-198.72432547,0.000384,120]
[420886255,1776701010716,-171.12740107,0.000384,120]
[420886256,1776701010745,-215.95999738,0.000384,120]
[420886257,1776701010773,-169.86911132,0.000384,120]
[420886258,1776701010801,-186.48874162,0.000384,120]
[420886259,1776701010829,-150.99476562,0.000384,120]
[420886260,1776701010859,-179.16416392,0.000384,120]
[420886261,1776701010888,-178.8823724,0.000384,120]
[420886262,1776701010918,-154.4025686,0.000384,120]
[420886263,1776701010947,-161.25883824,0.000384,120]
[420886264,1776701010976,-197.24895777,0.000384,120]
[420886265,1776701011005,-288.81893921,0.000384,120]
[420886266,1776701011035,-213.26080701,0.000384,120]
[420886267,1776701011064,-161.2159214,0.000384,120]
[420886268,1776701011093,-184.18230539,0.000384,120]
[420886269,1776701011122,-197.298222,0.000384,120]
[420886270,1776701011150,-987.05307193,0.00038469,120]
[420886271,1776701011179,-1000.0,0.000385,30]
[420886272,1776701011207,-526.02720321,0.000385,30]
[420886273,1776701011234,-160.2,0.000385,30]
[420886274,1776701011262,-215.41861242,0.00038548,120]
[420886275,1776701011298,-211.21955619,0.00038548,120]
[420886276,1776701011327,-220.84872753,0.00038548,120]
[420886277,1776701011356,-212.96480515,0.00038548,120]
[420886278,1776701011386,-987.05307193,0.00038584,120]
[420886279,1776701011418,-39602.73147212,0.00038599,90]
[420886280,1776701011447,-1656.0,0.0003863,30]
[420886281,1776701011476,-234.88433273,0.00038664,30]
[420886282,1776701011506,-150.99476562,0.00038664,30]
[420886283,1776701011536,-154.4025686,0.00038664,30]
[420886284,1776701011566,-268.43923741,0.00038674,120]
[420886285,1776701011597,-150.99476562,0.00038674,120]
[420886286,1776701011627,-154.4025686,0.00038674,120]
[420886287,1776701011657,-2756.58267811,0.00038678,30]
[420886288,1776701011686,-987.05307193,0.00038698,120]
[420886289,1776701011717,-500.0,0.000387,120]
[420886290,1776701011747,-500.0,0.000387,120]
[420886291,1776701011777,-500.0,0.000387,120]
[420886292,1776701011809,-500.0,0.000387,120]
[420886293,1776701011846,-500.0,0.000387,120]
[420886294,1776701011878,-500.0,0.000387,120]
[420886295,1776701011909,-500.0,0.000387,120]
[420886296,1776701011942,-500.0,0.000387,120]
[420886297,1776701011972,-500.0,0.000387,120]
[420886298,1776701012003,-500.0,0.000387,120]
[420886299,1776701012034,-500.0,0.000387,120]
[420886300,1776701012066,-500.0,0.000387,120]
[420886301,1776701012098,-500.0,0.000387,120]
[420886302,1776701012129,-500.0,0.000387,120]
[420886303,1776701012161,-500.0,0.000387,120]
[420886304,1776701012192,-500.0,0.000387,120]
[420886305,1776701012223,-500.0,0.000387,120]
[420886306,1776701012253,-500.0,0.000387,120]
[420886307,1776701012283,-500.0,0.000387,120]
[420886308,1776701012316,-500.0,0.000387,120]
[420886309,1776701012351,-1000.0,0.000388,30]
[420886310,1776701012381,-4847.38507356,0.000388,120]
[420886311,1776701012413,-500.0,0.00038808,120]
[420886312,1776701012442,-987.05307193,0.00038812,120]
[420886313,1776701012472,-12951.96,0.00038831,120]
[420886314,1776701012503,-291.7,0.00038831,120]
[420886315,1776701012534,-1166.82,0.00038831,120]
[420886316,1776701012564,-259.94,0.00038831,120]
[420886317,1776701012595,-452.4,0.00038831,120]
[420886318,1776701012625,-238.03703261,0.00038865,60]
[420886319,1776701012657,-169738.46219284,0.0003888,60]
[420886320,1776701012687,-1369.703,0.000389,60]
[420886321,1776701012718,-1369.7,0.000389,120]
[420886322,1776701012748,-298.30647259,0.000389,30]
[420886323,1776701012779,-5000.0,0.000389,120]
[420886324,1776701012810,-150.0,0.00038903,120]
[420886325,1776701012841,-1444.0,0.00038904,90]
[420886326,1776701012878,-208.0,0.0003891,30]
[420886327,1776701012909,-987.05307193,0.00038926,120]
[420886328,1776701012940,-234.88433273,0.00038938,30]
[420886329,1776701012971,-150.99476562,0.00038938,30]
[420886330,1776701013003,-154.4025686,0.00038938,30]
[420886331,1776701013034,-268.43923741,0.00038948,120]
[420886332,1776701013066,-150.99476562,0.00038948,120]
[420886333,1776701013096,-154.4025686,0.00038948,120]
[420886334,1776701013126,-353.61,0.00038972,120]
[420886335,1776701013156,-1000.0,0.00039,30]
[420886336,1776701013188,-456.38138523,0.00039,120]
[420886337,1776701013219,-2293.57661698,0.00039,120]
[420886338,1776701013248,-521.01112946,0.00039,120]
[420886339,1776701013277,-200.0,0.00039,120]
[420886340,1776701013308,-1000.0,0.00039,30]
[420886341,1776701013338,-1000.0,0.00039,30]
[420886342,1776701013368,-1000.0,0.00039,30]
[420886343,1776701013403,-1000.0,0.00039,120]
[420886344,1776701013435,-1000.0,0.00039,120]
[420886345,1776701013467,-262.92,0.00039,120]
[420886346,1776701013499,-1500.0,0.00039,120]
[420886347,1776701014259,-2051.0,0.00039,120]
[420886348,1776701014289,-3000000.0,0.00039,60]
[420886349,1776701014318,-4069.70635234,0.00039,120]
[420886350,1776701014349,-1661.32,0.0003902,112]
[420886351,1776701014377,-987.05307193,0.0003904,120]
[420886352,1776701014407,-337.79965293,0.00039041,60]
[420886353,1776701014436,-168.20184819,0.00039041,60]
[420886354,1776701014465,-957.93641364,0.00039041,60]
[420886355,1776701014495,-1202.689734,0.00039041,60]
[420886356,1776701014524,-3388.0,0.00039041,60]
[420886357,1776701014555,-2612.0,0.00039041,60]
[420886358,1776701014584,-350.0,0.0003906,120]
[420886359,1776701014614,-200.02875879,0.0003906,120]
[420886360,1776701014643,-987.05307193,0.00039154,120]
[420886361,1776701014673,-1000.0,0.000392,30]
[420886362,1776701014702,-500.42090882,0.000392,30]
[420886363,1776701014733,-247.0553521,0.000392,120]
[420886364,1776701014763,-234.88433273,0.00039212,30]
[420886365,1776701014795,-150.99476562,0.00039212,30]
[420886366,1776701014827,-154.4025686,0.00039212,30]
[420886367,1776701014858,-268.43923741,0.00039222,120]
[420886368,1776701014888,-150.99476562,0.00039222,120]
[420886369,1776701014919,-154.4025686,0.00039222,120]
[420886370,1776701014949,-987.05307193,0.00039269,120]
[420886371,1776701014979,-2193.73133099,0.000393,120]
[420886372,1776701015008,-2330.16090998,0.000393,120]
[420886373,1776701015040,-1091.62268428,0.000393,120]
[420886374,1776701015071,-1647.87086454,0.000393,120]
[420886375,1776701015100,-1184.84916998,0.000393,120]
[420886376,1776701015129,-965.0,0.00039308,30]
[420886377,1776701015158,-987.05307193,0.00039383,120]
[420886378,1776701015188,-150.0,0.00039451,120]
[420886379,1776701015218,-234.88433273,0.00039486,30]
[420886380,1776701015251,-171.12740107,0.00039486,30]
[420886381,1776701015281,-150.99476562,0.00039486,30]
[420886382,1776701015312,-154.4025686,0.00039486,30]
[420886383,1776701015343,-268.43923741,0.00039496,120]
[420886384,1776701015374,-171.12740107,0.00039496,120]
[420886385,1776701015406,-150.99476562,0.00039496,120]
[420886386,1776701015437,-154.4025686,0.00039496,120]
[420886387,1776701015468,-987.05307193,0.00039497,120]
[420886388,1776701015501,-1000.0,0.000395,30]
[420886389,1776701015531,-1285.827,0.000395,30]
[420886390,1776701015562,-1285.827,0.000395,30]
[420886391,1776701015592,-30145.0,0.000395,120]
[420886392,1776701015677,-500.0,0.00039546,120]
[420886393,1776701015715,-5050.19747972,0.00039565,92]
[420886394,1776701015768,-1000.0,0.000396,30]
[420886395,1776701015799,-987.05307193,0.00039611,120]
[420886396,1776701015830,-356.7,0.00039613,90]
[420886397,1776701015863,-500.0,0.00039629,120]
[420886398,1776701015892,-500.0,0.00039686,60]
[420886399,1776701015921,-3500.0,0.000397,120]
[420886400,1776701015951,-478821.71577731,0.000397,120]
[420886401,1776701015982,-1296.85596236,0.000397,120]
[420886402,1776701016014,-987.05307193,0.00039725,120]
[420886403,1776701016043,-157.18151523,0.00039726,120]
[420886404,1776701016073,-600.0,0.00039726,120]
[420886405,1776701016102,-4132.0,0.00039726,120]
[420886406,1776701016132,-1440.5379468,0.00039726,60]
[420886407,1776701016160,-234.88433273,0.0003976,30]
[420886408,1776701016189,-150.99476562,0.0003976,30]
[420886409,1776701016217,-154.4025686,0.0003976,30]
[420886410,1776701016246,-268.43923741,0.0003977,120]
[420886411,1776701016275,-150.99476562,0.0003977,120]
[420886412,1776701016304,-154.4025686,0.0003977,120]
[420886413,1776701016333,-1000.0,0.000398,30]
[420886414,1776701016360,-1006.91808986,0.000398,120]
[420886415,1776701016389,-1658.7312,0.000398,60]
[420886416,1776701016419,-106465.0711206,0.000398,30]
[420886417,1776701016448,-100000.0,0.000398,35]
[420886418,1776701016479,-100000.0,0.000398,40]
[420886419,1776701016510,-100000.0,0.000398,45]
[420886420,1776701016540,-987.05307193,0.00039839,120]
[420886421,1776701016569,-4264.3790042,0.0003988,120]
[420886422,1776701016598,-460.0,0.00039886,90]
[420886423,1776701016627,-11000.0,0.000399,30]
[420886424,1776701016656,-1074.97,0.000399,30]
[420886425,1776701016685,-2781.11777803,0.000399,120]
[420886426,1776701016715,-5000.0,0.000399,120]
[420886427,1776701016746,-330.01725528,0.000399,120]
[420886428,1776701016777,-211.21955619,0.00039918,120]
[420886429,1776701016806,-1661.32,0.0003993,120]
[420886430,1776701016835,-987.05307193,0.00039953,120]
[420886431,1776701016863,-606.74,0.00039972,120]
[420886432,1776701016894,-364.01,0.00039972,120]
[420886433,1776701016924,-227.14,0.00039972,120]
[420886434,1776701016954,-277.67367551,0.00039977,120]
[420886435,1776701016983,-150.0,0.00039999,120]
[420886436,1776701017013,-5000.0,0.0004,31]
[420886437,1776701017043,-1894.27184722,0.0004,30]
[420886438,1776701017073,-10000.0,0.0004,30]
[420886439,1776701017103,-1000.0,0.0004,30]
[420886440,1776701017132,-3300.0,0.0004,120]
[420886441,1776701017163,-1000.0,0.0004,120]
[420886442,1776701017192,-1589.27237994,0.0004,120]
[420886443,1776701017223,-800.0,0.0004,120]
[420886444,1776701017253,-600.0,0.0004,120]
[420886445,1776701017283,-2063.42534184,0.0004,120]
[420886446,1776701017313,-625.32371588,0.0004,120]
[420886447,1776701017758,-1000.0,0.0004,120]
[420886448,1776701017791,-1000.0,0.0004,120]
[420886449,1776701017823,-1000.0,0.0004,120]
[420886450,1776701017853,-736.0,0.0004,120]
[420886451,1776701017885,-200.0,0.0004,120]
[420886452,1776701017917,-1004.0,0.0004,30]
[420886453,1776701017948,-360.0,0.0004,120]
[420886454,1776701017979,-500.0,0.0004,120]
[420886455,1776701018009,-500.0,0.0004,120]
[420886456,1776701018040,-645.211162,0.0004,30]
[420886457,1776701018072,-495.53018486,0.0004,30]
[420886458,1776701018103,-866.25476731,0.0004,120]
[420886459,1776701018134,-153.0,0.0004,120]
[420886460,1776701018164,-210.7,0.0004,120]
[420886461,1776701018195,-5576.30173687,0.0004,120]
[420886462,1776701018224,-1999.01188657,0.0004,120]
[420886463,1776701018255,-477.12749073,0.0004,30]
[420886464,1776701018286,-7773.86685426,0.0004,120]
[420886465,1776701018316,-2092.08045577,0.0004,120]
[420886466,1776701018346,-412.91502397,0.0004,30]
[420886467,1776701018375,-3377.21798673,0.0004,120]
[420886468,1776701018406,-636.15364517,0.0004,120]
[420886469,1776701018435,-216.09099334,0.0004,30]
[420886470,1776701018466,-757.02924367,0.0004,120]
[420886471,1776701018497,-1216.68993171,0.0004,120]
[420886472,1776701018530,-807.59230967,0.0004,60]
[420886473,1776701018561,-474.46597806,0.0004,120]
[420886474,1776701018591,-2386.47791193,0.0004,120]
[420886475,1776701018620,-549.66473123,0.0004,30]
[420886476,1776701018651,-718.0,0.0004,120]
[420886477,1776701018679,-540.0,0.0004,30]
[420886478,1776701018709,-1185.17979862,0.0004,60]
[420886479,1776701018739,-511.06144428,0.0004,120]
[420886480,1776701018771,-1698.83797663,0.0004,30]
[420886481,1776701018800,-1595.38971354,0.0004,120]
[420886482,1776701018829,-798.80853374,0.0004,60]
[420886483,1776701018858,-1036.74837733,0.0004,30]
[420886484,1776701018888,-657.35529291,0.0004,30]
[420886485,1776701018919,-316.0,0.0004,120]
[420886486,1776701018948,-1000.0,0.0004,120]
[420886487,1776701018977,-1147.44,0.0004,120]
[420886488,1776701019007,-167.32170769,0.0004,120]
[420886489,1776701019036,-855.91651801,0.0004,120]
[420886490,1776701019065,-2000.0,0.0004,60]
[420886491,1776701019095,-400.3052004,0.0004,30]
[420886492,1776701019124,-181.0,0.0004,120]
[420886493,1776701019154,-181.0,0.0004,120]
[420886494,1776701019184,-181.0,0.0004,120]
[420886495,1776701019213,-245.42151264,0.0004,120]
[420886496,1776701019242,-5040.018957,0.0004,45]
[420886497,1776701019270,-500.0,0.0004,120]
[420886498,1776701019299,-500.0,0.0004,120]
[420886499,1776701019328,-500.0,0.0004,120]
[420886500,1776701019357,-500.0,0.0004,120]
[420886501,1776701019386,-500.0,0.0004,120]
[420886502,1776701019417,-500.0,0.0004,120]
[420886503,1776701019445,-500.0,0.0004,120]
[420886504,1776701019475,-500.0,0.0004,120]
[420886505,1776701019504,-500.0,0.0004,120]
[420886506,1776701019534,-500.0,0.0004,120]
[420886507,1776701019563,-500.0,0.0004,120]
[420886508,1776701019595,-500.0,0.0004,120]
[420886509,1776701019625,-500.0,0.0004,120]
[420886510,1776701019655,-500.0,0.0004,120]
[420886511,1776701019685,-500.0,0.0004,120]
[420886512,1776701019715,-500.0,0.0004,120]
[420886513,1776701019744,-500.0,0.0004,120]
[420886514,1776701019774,-500.0,0.0004,120]
[420886515,1776701019803,-500.0,0.0004,120]
[420886516,1776701019834,-731.47,0.0004,120]
[420886517,1776701019864,-1000.0,0.0004,120]
[420886518,1776701019896,-1000.0,0.0004,30]
[420886519,1776701019927,-1000.0,0.0004,30]
[420886520,1776701019959,-1000.0,0.0004,30]
[420886521,1776701019988,-1000.0,0.0004,30]
[420886522,1776701020019,-1000.0,0.0004,30]
[420886523,1776701020049,-2972.0,0.0004,120]
[420886524,1776701020079,-826.48396891,0.0004,30]
[420886525,1776701020108,-1009.0,0.0004,120]
[420886526,1776701020138,-1000.0,0.0004,120]
[420886527,1776701020167,-1000.0,0.0004,120]
[420886528,1776701020196,-1000.0,0.0004,120]
[420886529,1776701020224,-1000.0,0.0004,120]
[420886530,1776701020253,-1000.0,0.0004,120]
[420886531,1776701020282,-1000.0,0.0004,120]
[420886532,1776701020310,-1000.0,0.0004,120]
[420886533,1776701020338,-1000.0,0.0004,120]
[420886534,1776701020366,-128313.26542091,0.0004,30]
[420886535,1776701020394,-10352.50500837,0.0004,30]
[420886536,1776701020422,-178.0,0.0004,120]
[420886537,1776701020450,-3016.89629219,0.0004,120]
[420886538,1776701020478,-154.92726516,0.0004,60]
[420886539,1776701020506,-1631.99001759,0.0004,30]
[420886540,1776701020535,-559.28768979,0.0004,120]
[420886541,1776701020562,-169.62022323,0.0004,30]
[420886542,1776701020591,-200009.999999,0.0004,30]
[420886543,1776701020619,-32917.90503243,0.0004,120]
[420886544,1776701020651,-483.2041085,0.0004,30]
[420886545,1776701020680,-438.36657406,0.0004,30]
[420886546,1776701020709,-1257.91,0.0004,30]
[420886547,1776701020738,-692.36,0.0004,30]